bitfinex-derivatives/quotes_BTCF0:USTF0_20220103
["timestamp","ask_amount","ask_price","bid_price","bid_amount"]
[1641183562360,1.296,46900.0,46895.0,0.35464931]
[1641183562361,1.45078489,46898.0,46895.0,0.35464931]
[1641183562961,1.45078489,46898.0,46895.0,0.54364931]
[1641183563665,0.09071397,46899.0,46895.0,0.189]
[1641183564265,0.09071397,46899.0,46893.0,0.14033567]
[1641183565067,0.09071397,46899.0,46893.0,0.32833567]
[1641183566269,0.09071397,46899.0,46893.0,0.14033567]
[1641183566972,0.09071397,46899.0,46893.0,0.32533567]
[1641183568374,0.09071397,46899.0,46893.0,0.14033567]
[1641183568977,0.09071397,46899.0,46893.0,0.32533567]
[1641183570377,0.09071397,46899.0,46893.0,0.14033567]
[1641183571091,0.09071397,46899.0,46893.0,0.32533567]
[1641183572289,0.27071397,46899.0,46893.0,0.32533567]
[1641183572491,1.38671397,46899.0,46893.0,0.185]
[1641183572694,0.18,46894.0,46893.0,0.185]
[1641183572892,1.296,46894.0,46893.0,0.185]
[1641183573191,1.296,46894.0,46891.0,0.35464931]
[1641183573393,0.001,46892.0,46891.0,0.35464931]
[1641183573691,1.116,46891.0,46882.0,1.32293687]
[1641183573891,1.116,46885.0,46882.0,1.32293687]
[1641183574094,1.296,46883.0,46882.0,1.32293687]
[1641183575093,1.303,46883.0,46882.0,1.32293687]
[1641183575494,1.483,46883.0,46879.0,1.18718755]
[1641183576497,1.483,46883.0,46876.0,1.46327254]
[1641183576897,0.09071397,46882.0,46876.0,0.14033567]
[1641183577496,0.09071397,46882.0,46877.0,0.12098887]
[1641183579102,0.27671397,46882.0,46877.0,0.12098887]
[1641183580205,0.09071397,46881.0,46877.0,0.12098887]
[1641183581005,0.27771397,46881.0,46877.0,0.12098887]
[1641183581806,0.09071397,46880.0,46877.0,0.12098887]
[1641183583107,0.27771397,46880.0,46877.0,0.12098887]
[1641183583308,0.27771397,46880.0,46878.0,0.83280697]
[1641183584008,0.09071397,46879.0,46878.0,0.83280697]
[1641183585011,0.27471397,46879.0,46878.0,0.83580697]
[1641183585213,1.45078489,46884.0,46878.0,0.95679335]
[1641183585620,1.45078489,46884.0,46879.0,0.42662623]
[1641183585813,1.45078489,46884.0,46880.0,0.18]
[1641183586113,1.45078489,46884.0,46883.0,0.001]
[1641183586313,1.45078489,46885.0,46883.0,0.08366]
[1641183586512,1.45078489,46885.0,46884.0,0.001]
[1641183586914,0.0001,46890.0,46884.0,0.14133567]
[1641183587112,0.0001,46890.0,46884.0,0.45832205]
[1641183587315,0.0001,46890.0,46885.0,0.12098638]
[1641183587713,0.0001,46890.0,46884.0,0.33733567]
[1641183588313,0.0001,46890.0,46885.0,0.1209656]
[1641183588914,0.0001,46890.0,46885.0,0.3009656]
[1641183589116,0.0001,46890.0,46885.0,0.4979656]
[1641183589415,0.0001,46890.0,46886.0,0.1209656]
[1641183591015,0.0001,46890.0,46889.0,0.14033567]
[1641183593219,0.0001,46890.0,46889.0,0.33733567]
[1641183594418,0.0001,46890.0,46889.0,0.14033567]
[1641183595120,0.0001,46890.0,46889.0,0.33733567]
[1641183596428,0.0001,46890.0,46889.0,0.14033567]
[1641183597223,0.0001,46890.0,46889.0,0.33833567]
[1641183598425,0.0001,46890.0,46889.0,0.14033567]
[1641183598825,0.0001,46890.0,46889.0,0.26130055]
[1641183599026,0.0001,46890.0,46889.0,0.14033567]
[1641183599229,0.0001,46890.0,46889.0,0.33733567]
[1641183600131,0.0001,46890.0,46889.0,0.45830029]
[1641183600330,0.0001,46890.0,46889.0,0.26130029]
[1641183601130,0.0001,46890.0,46889.0,0.45930029]
[1641183601530,0.0001,46890.0,46889.0,0.33833567]
[1641183601932,0.0001,46890.0,46889.0,0.45929935]
[1641183602533,0.0001,46890.0,46889.0,0.26129935]
[1641183603034,0.0001,46890.0,46889.0,0.14033567]
[1641183603233,0.0001,46890.0,46889.0,0.198]
[1641183603434,0.0001,46890.0,46889.0,0.31896322]
[1641183604441,0.0001,46890.0,46889.0,0.81430078]
[1641183606445,0.0001,46890.0,46889.0,0.49533756]
[1641183606845,0.0001,46890.0,46889.0,0.14033567]
[1641183607256,0.0001,46890.0,46889.0,0.33733567]
[1641183608047,0.0001,46890.0,46889.0,0.69243034]
[1641183608648,0.0001,46890.0,46889.0,0.49543034]
[1641183608849,0.0001,46890.0,46889.0,0.14033567]
[1641183609046,1.1161,46890.0,46889.0,0.14033567]
[1641183609246,1.1161,46890.0,46889.0,0.33933567]
[1641183609847,0.0001,46890.0,46889.0,0.33933567]
[1641183610248,1.1161,46890.0,46889.0,0.33933567]
[1641183610449,1.20682995,46890.0,46889.0,0.33933567]
[1641183610647,1.20682995,46890.0,46889.0,0.14033567]
[1641183611249,1.20682995,46890.0,46889.0,0.33433567]
[1641183612049,1.38682995,46890.0,46889.0,0.33433567]
[1641183612349,2.65778375,46890.0,46889.0,0.33433567]
[1641183612549,2.83778375,46890.0,46889.0,0.14033567]
[1641183613051,1.38682995,46890.0,46889.0,0.14033567]
[1641183613258,1.38682995,46890.0,46889.0,0.33433567]
[1641183613957,1.38682995,46890.0,46889.0,0.194]
[1641183614158,1.40816457,46890.0,46889.0,0.194]
[1641183614457,1.54850024,46890.0,46889.0,0.194]
[1641183614659,1.54850024,46890.0,46884.0,0.35509467]
[1641183614864,1.296,46885.0,46884.0,0.35509467]
[1641183615060,1.296,46885.0,46883.0,0.35509467]
[1641183615259,1.296,46885.0,46884.0,0.19]
[1641183616061,1.38672995,46885.0,46884.0,0.19]
[1641183616667,1.38672995,46885.0,46882.0,0.49543034]
[1641183617267,1.38672995,46885.0,46882.0,0.32733567]
[1641183617763,0.09072995,46884.0,46882.0,0.32733567]
[1641183618564,1.296,46883.0,46882.0,0.06523567]
[1641183619164,1.485,46883.0,46881.0,0.35509467]
[1641183619867,1.57572995,46883.0,46879.0,0.94676448]
[1641183620068,1.57572995,46883.0,46879.0,0.35509467]
[1641183620267,1.116,46881.0,46879.0,0.35509467]
[1641183621270,1.487,46881.0,46879.0,0.35509467]
[1641183621467,0.09072995,46880.0,46879.0,0.35509467]
[1641183623276,0.28272995,46880.0,46879.0,0.35509467]
[1641183624279,0.28272995,46880.0,46879.0,0.47608857]
[1641183624572,0.09072995,46880.0,46879.0,0.47608857]
[1641183625272,0.28772995,46880.0,46879.0,0.1209939]
[1641183625473,0.28772995,46880.0,46879.0,0.71266371]
[1641183625673,0.28772995,46880.0,46879.0,0.59166981]
[1641183625973,0.28772995,46880.0,46879.0,0.71266371]
[1641183626175,0.197,46880.0,46879.0,0.71266371]
[1641183626375,0.197,46880.0,46879.0,0.1209939]
[1641183626674,0.84610952,46882.0,46879.0,0.1209939]
[1641183626874,0.84610952,46882.0,46877.0,0.1209939]
[1641183627076,0.84610952,46882.0,46880.0,0.1209939]
[1641183627274,1.04210952,46882.0,46880.0,0.1209939]
[1641183627482,1.04210952,46882.0,46877.0,0.1209939]
[1641183627777,1.04210952,46882.0,46876.0,0.35662245]
[1641183627981,0.196,46882.0,46878.0,0.12099428]
[1641183628181,0.196,46882.0,46877.0,0.47761673]
[1641183628477,0.196,46882.0,46878.0,0.12099428]
[1641183628677,0.84610952,46883.0,46878.0,0.12099428]
[1641183628879,0.36261866,46879.0,46878.0,0.12099428]
[1641183629277,0.36261866,46879.0,46877.0,0.12099428]
[1641183629479,0.36261866,46879.0,46878.0,0.12099428]
[1641183629878,0.36261866,46879.0,46877.0,0.12099428]
[1641183630078,0.36261866,46879.0,46878.0,0.12099428]
[1641183630682,0.36261866,46879.0,46877.0,0.12099428]
[1641183631080,0.36261866,46879.0,46878.0,0.12099428]
[1641183631283,0.39161866,46879.0,46878.0,0.12099428]
[1641183632579,0.36261866,46879.0,46878.0,0.12099428]
[1641183633282,0.65441266,46879.0,46878.0,0.163]
[1641183633480,0.65441266,46879.0,46876.0,0.35662245]
[1641183633481,0.42664953,46877.0,46876.0,0.35662245]
[1641183633681,1.54264953,46877.0,46874.0,0.59166981]
[1641183633881,1.296,46875.0,46874.0,0.59166981]
[1641183634483,0.009794,46874.0,46873.0,0.02609215]
[1641183634783,1.26612967,46874.0,46873.0,0.02609215]
[1641183635383,1.45112967,46874.0,46863.0,2.40160725]
[1641183635584,0.18,46870.0,46863.0,2.40160725]
[1641183635785,1.296,46870.0,46863.0,2.40160725]
[1641183636186,0.33512967,46874.0,46863.0,2.40160725]
[1641183636386,0.33512967,46874.0,46859.0,1.18333962]
[1641183636588,0.18,46871.0,46859.0,1.36333962]
[1641183636786,0.18,46871.0,46857.0,0.05861]
[1641183636787,1.296,46871.0,46857.0,0.05861]
[1641183636986,1.296,46871.0,46860.0,1.8336]
[1641183637387,0.09077162,46870.0,46860.0,1.8336]
[1641183637788,0.09077162,46870.0,46856.0,0.18]
[1641183638400,0.09077162,46870.0,46859.0,0.18]
[1641183638800,0.23110729,46870.0,46859.0,0.18]
[1641183639000,0.23110729,46870.0,46855.0,1.36333962]
[1641183639202,0.23110729,46870.0,46856.0,0.18]
[1641183639399,0.32933567,46870.0,46856.0,0.18]
[1641183639800,0.32933567,46870.0,46856.0,1.36333962]
[1641183640501,0.32933567,46870.0,46861.0,0.18]
[1641183640801,0.14033567,46870.0,46858.0,0.18]
[1641183641202,0.14033567,46870.0,46856.0,1.18333962]
[1641183641402,0.32933567,46870.0,46856.0,1.18333962]
[1641183642602,0.14033567,46870.0,46856.0,1.18333962]
[1641183642903,1.0770826,46870.0,46857.0,0.83420711]
[1641183643306,1.2650826,46870.0,46857.0,0.83420711]
[1641183643703,1.2650826,46870.0,46858.0,0.83420711]
[1641183644003,1.2650826,46870.0,46869.0,0.07742]
[1641183644703,1.0770826,46870.0,46869.0,0.07742]
[1641183645404,1.2650826,46870.0,46869.0,0.07742]
[1641183646306,0.32833567,46870.0,46869.0,0.07742]
[1641183646607,0.14033567,46870.0,46869.0,0.07742]
[1641183647407,0.32833567,46870.0,46869.0,0.07742]
[1641183648107,0.41910984,46870.0,46869.0,0.07742]
[1641183648707,0.23110984,46870.0,46869.0,0.07742]
[1641183649207,0.14033567,46870.0,46869.0,0.07742]
[1641183649406,0.32833567,46870.0,46869.0,0.07742]
[1641183649806,0.32833567,46870.0,46869.0,0.02]
[1641183650007,0.50833567,46870.0,46869.0,0.02]
[1641183650208,1.98668111,46870.0,46869.0,0.02]
[1641183650609,1.79868111,46870.0,46869.0,0.02]
[1641183651011,1.52183068,46870.0,46869.0,0.02]
[1641183651410,1.79961744,46870.0,46869.0,0.02]
[1641183652611,1.61261744,46870.0,46869.0,0.02]
[1641183653411,1.79961744,46870.0,46869.0,0.02]
[1641183653612,1.71412243,46870.0,46869.0,0.02]
[1641183654612,1.52712243,46870.0,46869.0,0.02]
[1641183655313,1.71412243,46870.0,46869.0,0.02]
[1641183656614,1.52712243,46870.0,46869.0,0.02]
[1641183657317,1.71412243,46870.0,46869.0,0.02]
[1641183658617,1.116,46868.0,46854.0,0.16167801]
[1641183658818,0.14033567,46863.0,46854.0,0.16167801]
[1641183659218,0.14033567,46863.0,46855.0,0.01210385]
[1641183659419,0.32833567,46863.0,46855.0,0.01210385]
[1641183660722,0.14033567,46863.0,46855.0,0.01210385]
[1641183661320,0.32833567,46863.0,46855.0,0.01210385]
[1641183662726,0.14033567,46863.0,46855.0,0.01210385]
[1641183663326,0.32833567,46863.0,46855.0,0.01210385]
[1641183664127,0.32833567,46863.0,46854.0,0.14033567]
[1641183664327,2.77835365,46862.0,46854.0,0.14033567]
[1641183664930,2.77835365,46862.0,46851.0,0.35816031]
[1641183665328,2.96935365,46862.0,46852.0,0.01210469]
[1641183666328,0.200794,46862.0,46852.0,0.01210469]
[1641183666529,0.56318308,46862.0,46852.0,0.01210469]
[1641183666727,0.37218308,46862.0,46852.0,0.01210469]
[1641183666928,0.37218308,46862.0,46850.0,0.01210469]
[1641183667129,0.37218308,46862.0,46853.0,0.01210469]
[1641183667329,0.56318308,46862.0,46851.0,0.01210469]
[1641183667631,0.56318308,46862.0,46850.0,0.01210469]
[1641183667829,0.56318308,46862.0,46852.0,0.01210469]
[1641183668030,0.56318308,46862.0,46851.0,0.01210469]
[1641183668332,0.56318308,46862.0,46853.0,0.01210469]
[1641183668533,0.56318308,46862.0,46852.0,0.01210469]
[1641183668735,0.56318308,46862.0,46854.0,0.01210469]
[1641183668933,0.56318308,46862.0,46853.0,0.01210469]
[1641183669133,0.56318308,46862.0,46849.0,0.4681445]
[1641183669333,0.56318308,46862.0,46849.0,0.3795045]
[1641183669534,0.56318308,46862.0,46854.0,0.01210455]
[1641183669734,0.56318308,46862.0,46850.0,0.13315015]
[1641183669941,0.56318308,46862.0,46850.0,0.01210455]
[1641183670142,0.56318308,46862.0,46849.0,0.3795045]
[1641183670335,0.200794,46862.0,46851.0,0.13315026]
[1641183670536,0.200794,46862.0,46850.0,0.49131057]
[1641183670735,1.296,46859.0,46852.0,0.01210458]
[1641183670939,1.35705,46859.0,46852.0,0.01210458]
[1641183671137,1.25633567,46854.0,46850.0,0.35816031]
[1641183671437,1.26612967,46854.0,46850.0,0.35816031]
[1641183672149,1.26612967,46854.0,46848.0,0.59778749]
[1641183672351,2.11170419,46854.0,46852.0,1.30167359]
[1641183672550,1.54386943,46853.0,46852.0,1.28208559]
[1641183673154,1.6842051,46853.0,46849.0,0.79660194]
[1641183673356,1.296,46850.0,46849.0,0.79660194]
[1641183673556,1.297,46850.0,46849.0,0.79660194]
[1641183673755,1.297,46850.0,46836.0,0.18]
[1641183674055,1.296,46850.0,46837.0,0.01210801]
[1641183674955,1.296,46850.0,46836.0,0.18]
[1641183675156,1.25633567,46843.0,46836.0,0.18]
[1641183675857,0.14033567,46843.0,46836.0,0.18]
[1641183677470,0.32533567,46843.0,46836.0,0.18]
[1641183678861,0.14033567,46843.0,46836.0,0.18]
[1641183679261,1.116,46842.0,46836.0,0.18]
[1641183679664,1.116,46842.0,46832.0,0.0213522]
[1641183680261,1.116,46842.0,46833.0,0.01210834]
[1641183681062,0.14033567,46838.0,46833.0,0.01210834]
[1641183681263,0.14033567,46838.0,46833.0,0.19210834]
[1641183681463,0.14033567,46838.0,46833.0,0.01210834]
[1641183681763,0.14033567,46838.0,46834.0,0.01210834]
[1641183682363,0.14033567,46838.0,46833.0,0.01210834]
[1641183682563,0.14033567,46838.0,46832.0,0.0213522]
[1641183682965,0.14033567,46838.0,46833.0,0.13319177]
[1641183683364,0.32633567,46838.0,46833.0,0.01210835]
[1641183683565,0.32633567,46838.0,46832.0,0.0213522]
[1641183683766,0.32633567,46838.0,46834.0,0.01210961]
[1641183683965,0.32633567,46838.0,46833.0,0.13320562]
[1641183684167,0.32633567,46838.0,46832.0,0.0213522]
[1641183684467,0.32633567,46838.0,46833.0,0.13320598]
[1641183684668,0.14033567,46838.0,46833.0,0.13320598]
[1641183684866,0.14033567,46838.0,46832.0,0.0213522]
[1641183685368,0.32633567,46838.0,46833.0,0.12109586]
[1641183685570,0.32633567,46838.0,46833.0,0.13320545]
[1641183685767,0.32633567,46838.0,46834.0,0.01210959]
[1641183686367,0.32633567,46838.0,46833.0,0.01210959]
[1641183686569,0.32633567,46838.0,46832.0,0.0213522]
[1641183686768,0.14033567,46838.0,46832.0,0.0213522]
[1641183686968,0.14033567,46838.0,46833.0,0.12109647]
[1641183687167,0.14033567,46838.0,46833.0,0.13320611]
[1641183687368,0.32933567,46838.0,46834.0,0.01210964]
[1641183688871,0.14033567,46838.0,46834.0,0.01210964]
[1641183689472,0.33033567,46838.0,46834.0,0.01210964]
[1641183690679,0.14033567,46838.0,46834.0,0.01210964]
[1641183691176,0.14033567,46838.0,46833.0,0.01210964]
[1641183691377,0.32933567,46838.0,46833.0,0.01210964]
[1641183691576,0.32933567,46838.0,46832.0,0.0213522]
[1641183691776,0.32933567,46838.0,46834.0,0.01210964]
[1641183692178,0.32933567,46838.0,46833.0,0.13320604]
[1641183692375,0.32933567,46838.0,46833.0,0.01210964]
[1641183692776,0.14033567,46838.0,46834.0,0.01210964]
[1641183693377,0.33133567,46838.0,46834.0,0.01210964]
[1641183693576,0.33133567,46838.0,46833.0,0.01210964]
[1641183693976,0.33133567,46838.0,46835.0,0.01210964]
[1641183694376,0.33133567,46838.0,46834.0,0.01210964]
[1641183694777,0.14033567,46838.0,46834.0,0.01210964]
[1641183695380,0.93563018,46837.0,46834.0,0.01210964]
[1641183695577,0.93563018,46837.0,46835.0,1.3195714]
[1641183697287,0.84479462,46837.0,46835.0,1.3195714]
[1641183697487,0.36317885,46836.0,46833.0,1.3195714]
[1641183697888,0.36317885,46836.0,46834.0,0.01210972]
[1641183699390,0.55517885,46836.0,46834.0,0.01210972]
[1641183700685,0.36317885,46836.0,46834.0,0.01210972]
[1641183701288,0.36317885,46836.0,46833.0,0.01210972]
[1641183701495,0.55517885,46836.0,46832.0,1.3409236]
[1641183701696,0.55517885,46836.0,46834.0,0.01210988]
[1641183702091,0.55517885,46836.0,46833.0,0.01210988]
[1641183702392,0.55517885,46836.0,46832.0,1.3409236]
[1641183702590,0.55517885,46836.0,46834.0,0.01210995]
[1641183702790,0.36317885,46836.0,46833.0,0.01210995]
[1641183702990,0.36317885,46836.0,46832.0,1.3409236]
[1641183703189,0.36317885,46836.0,46834.0,0.01210995]
[1641183703390,0.55417885,46836.0,46833.0,0.01210995]
[1641183703599,0.55417885,46836.0,46834.0,0.18]
[1641183703791,0.55417885,46836.0,46833.0,0.01210995]
[1641183703992,0.55417885,46836.0,46832.0,1.5209236]
[1641183704291,0.55417885,46836.0,46833.0,0.01210987]
[1641183704691,0.36317885,46836.0,46833.0,0.01210987]
[1641183705392,0.55817885,46836.0,46833.0,0.01210987]
[1641183705593,0.55817885,46836.0,46833.0,1.33168127]
[1641183706194,0.55817885,46836.0,46834.0,0.01210987]
[1641183706393,0.195,46836.0,46834.0,1.33168127]
[1641183706693,0.36317885,46837.0,46834.0,1.33168127]
[1641183706894,0.36317885,46837.0,46835.0,0.18]
[1641183707193,0.36317885,46837.0,46835.0,0.19210987]
[1641183707396,0.177,46837.0,46835.0,0.19210987]
[1641183707597,0.177,46837.0,46836.0,0.01210987]
[1641183708798,0.36317885,46838.0,46836.0,0.01210987]
[1641183709195,0.36317885,46839.0,46835.0,1.4995714]
[1641183709395,0.19,46838.0,46835.0,1.4995714]
[1641183709596,0.19,46838.0,46836.0,0.01210944]
[1641183709998,0.36317885,46839.0,46836.0,0.03345985]
[1641183710198,0.14033567,46846.0,46838.0,0.18]
[1641183710398,0.14033567,46846.0,46842.0,0.18]
[1641183710598,0.14033567,46846.0,46842.0,0.25648]
[1641183711601,0.14033567,46846.0,46842.0,0.44948]
[1641183712000,0.09082334,46845.0,46842.0,0.26948]
[1641183713312,0.09082334,46845.0,46844.0,0.18]
[1641183714310,0.09082334,46849.0,46844.0,0.18]
[1641183715413,0.25482334,46849.0,46844.0,0.366]
[1641183716214,0.25482334,46849.0,46844.0,0.186]
[1641183716417,0.09082334,46848.0,46844.0,0.186]
[1641183716814,0.09082334,46848.0,46842.0,1.27639489]
[1641183717417,0.27182334,46848.0,46842.0,1.45239489]
[1641183717715,0.27182334,46848.0,46842.0,0.25248]
[1641183718717,0.09082334,46847.0,46842.0,0.25248]
[1641183718920,0.09082334,46847.0,46843.0,0.84018808]
[1641183719518,0.27582334,46847.0,46843.0,1.00918808]
[1641183719719,0.185,46847.0,46844.0,0.84018808]
[1641183720719,0.02135311,46848.0,46844.0,0.84018808]
[1641183721222,0.09082334,46846.0,46843.0,0.84018808]
[1641183722218,0.09082334,46847.0,46843.0,0.84018808]
[1641183722822,1.5390427,46847.0,46842.0,0.84018808]
[1641183723522,1.7260427,46847.0,46842.0,0.84018808]
[1641183724324,0.27782334,46847.0,46841.0,0.84018808]
[1641183724931,0.09082334,46847.0,46841.0,0.84018808]
[1641183725126,0.09082334,46846.0,46841.0,0.84018808]
[1641183726225,0.19,46847.0,46841.0,0.84018808]
[1641183726631,1.5390427,46849.0,46841.0,0.84018808]
[1641183727026,0.09082334,46849.0,46841.0,0.84018808]
[1641183727428,0.09082334,46846.0,46842.0,0.84018808]
[1641183727628,0.27082334,46846.0,46842.0,0.84018808]
[1641183727927,0.09082334,46846.0,46842.0,0.84018808]
[1641183728630,0.09082334,46845.0,46841.0,0.84018808]
[1641183728829,0.09082334,46845.0,46842.0,0.60143181]
[1641183729530,1.116,46844.0,46842.0,0.60143181]
[1641183730029,0.14033567,46843.0,46842.0,0.60143181]
[1641183731133,0.23115901,46843.0,46840.0,0.60143181]
[1641183731532,0.42315901,46843.0,46840.0,0.60143181]
[1641183732232,0.09082334,46842.0,46840.0,0.60143181]
[1641183733442,0.28082334,46842.0,46840.0,0.60143181]
[1641183734038,0.28082334,46842.0,46838.0,0.60143181]
[1641183734737,1.39682334,46842.0,46838.0,0.60143181]
[1641183734938,0.09082334,46841.0,46838.0,0.60143181]
[1641183735537,0.28282334,46841.0,46838.0,0.60143181]
[1641183736138,0.42315901,46841.0,46838.0,0.60143181]
[1641183736348,0.09082334,46840.0,46839.0,0.36140713]
[1641183736539,0.16347334,46840.0,46839.0,0.36140713]
[1641183737439,0.33647334,46840.0,46839.0,0.52940713]
[1641183737641,0.26382334,46840.0,46839.0,0.52940713]
[1641183738841,0.09082334,46840.0,46838.0,0.60143181]
[1641183739543,0.26682334,46840.0,46838.0,0.76643181]
[1641183739743,1.38282334,46840.0,46838.0,0.76643181]
[1641183739942,1.38282334,46840.0,46839.0,0.36196171]
[1641183740141,0.26682334,46840.0,46839.0,0.36196171]
[1641183740843,0.09082334,46840.0,46839.0,0.36196171]
[1641183741444,0.27482334,46840.0,46839.0,0.52996171]
[1641183741842,0.27482334,46840.0,46839.0,0.168]
[1641183742743,0.09082334,46840.0,46838.0,0.84018808]
[1641183743543,0.27582334,46840.0,46838.0,1.00918808]
[1641183744246,0.185,46840.0,46839.0,0.84018808]
[1641183744847,0.14033567,46841.0,46839.0,0.84018808]
[1641183745446,0.31833567,46841.0,46839.0,0.87618808]
[1641183745849,1.43433567,46841.0,46839.0,0.87618808]
[1641183746047,1.43433567,46841.0,46839.0,0.036]
[1641183746247,1.43433567,46841.0,46840.0,0.60367878]
[1641183746648,0.31833567,46841.0,46840.0,0.60367878]
[1641183746948,0.14033567,46841.0,46840.0,0.60367878]
[1641183747151,0.14033567,46841.0,46839.0,0.60367878]
[1641183747549,1.116,46840.0,46839.0,0.60367878]
[1641183748249,1.116,46840.0,46838.0,0.84018808]
[1641183748651,0.33333567,46841.0,46838.0,0.84018808]
[1641183748952,0.14033567,46841.0,46838.0,0.84018808]
[1641183749152,0.14033567,46841.0,46836.0,1.56188226]
[1641183749352,0.14033567,46841.0,46836.0,0.36196737]
[1641183749551,0.33333567,46841.0,46836.0,0.36196737]
[1641183750554,0.84705271,46837.0,46836.0,0.36196737]
[1641183751353,0.84705271,46837.0,46836.0,0.55496737]
[1641183752054,0.84705271,46838.0,46836.0,0.55496737]
[1641183752853,0.84705271,46838.0,46836.0,0.36196737]
[1641183753354,0.84705271,46837.0,46836.0,0.55296737]
[1641183754054,0.84705271,46837.0,46836.0,0.191]
[1641183754866,0.84705271,46837.0,46836.0,0.55296737]
[1641183755068,0.84705271,46837.0,46836.0,0.36196737]
[1641183755467,0.84705271,46837.0,46836.0,0.55496737]
[1641183756570,0.84705271,46837.0,46836.0,0.193]
[1641183756869,0.84705271,46837.0,46835.0,0.36196737]
[1641183757372,0.84705271,46837.0,46835.0,0.55496737]
[1641183758172,0.84705271,46837.0,46836.0,0.36196737]
[1641183759174,0.84705271,46837.0,46835.0,0.36196737]
[1641183759375,0.84705271,46837.0,46836.0,0.193]
[1641183760378,1.96305271,46837.0,46836.0,0.193]
[1641183760776,1.96305271,46837.0,46835.0,0.36196737]
[1641183760980,1.296,46836.0,46835.0,0.36196737]
[1641183761379,1.296,46836.0,46835.0,0.138]
[1641183762378,1.38682995,46836.0,46835.0,0.138]
[1641183762780,1.38682995,46836.0,46832.0,0.36196737]
[1641183762977,1.296,46835.0,46832.0,0.36196737]
[1641183763478,1.296,46835.0,46832.0,0.52296737]
[1641183763680,1.116,46835.0,46832.0,0.52296737]
[1641183763879,0.09082995,46834.0,46832.0,0.52296737]
[1641183764078,0.18,46833.0,46832.0,0.52296737]
[1641183765180,1.11795034,46833.0,46832.0,0.161]
[1641183765382,1.29795034,46833.0,46832.0,0.172]
[1641183766785,1.11795034,46833.0,46831.0,0.36196737]
[1641183767185,1.02712039,46833.0,46831.0,0.36196737]
[1641183767385,1.20712039,46833.0,46831.0,0.49896737]
[1641183768888,0.18,46833.0,46826.0,1.34025056]
[1641183769086,0.09083872,46832.0,46831.0,1.19991489]
[1641183769688,1.20683872,46832.0,46831.0,1.19991489]
[1641183769888,0.09083872,46832.0,46831.0,1.19991489]
[1641183770890,0.23117439,46832.0,46831.0,1.19991489]
[1641183771391,0.40217439,46832.0,46831.0,1.34191489]
[1641183772092,1.24944252,46832.0,46831.0,0.142]
[1641183772891,1.07844252,46832.0,46830.0,0.60406017]
[1641183773393,1.24944252,46832.0,46830.0,0.74506017]
[1641183774192,0.09083872,46831.0,46830.0,0.74506017]
[1641183774793,0.09083872,46831.0,46830.0,0.60406017]
[1641183775394,0.22983872,46831.0,46830.0,0.78906017]
[1641183776693,0.09083872,46831.0,46830.0,0.60406017]
[1641183777495,0.24083872,46831.0,46830.0,0.78906017]
[1641183779396,0.24683872,46831.0,46830.0,0.79006017]
[1641183780399,1.09410685,46831.0,46830.0,0.79006017]
[1641183780598,1.09410685,46831.0,46830.0,0.87032017]
[1641183780801,0.93810685,46831.0,46830.0,0.68432017]
[1641183781406,0.93810685,46831.0,46830.0,0.87732017]
[1641183781601,0.93810685,46831.0,46830.0,0.88711417]
[1641183782001,0.93810685,46831.0,46830.0,1.0082154]
[1641183782603,0.84726813,46831.0,46830.0,0.283054]
[1641183782903,0.14033567,46837.0,46830.0,0.283054]
[1641183782904,0.84726813,46833.0,46830.0,0.93573824]
[1641183783508,0.84726813,46833.0,46830.0,1.13173824]
[1641183784306,0.36309358,46831.0,46830.0,0.286054]
[1641183784807,0.36309358,46831.0,46830.0,0.090054]
[1641183785006,0.36309358,46831.0,46830.0,0.21115371]
[1641183785209,0.36309358,46831.0,46830.0,0.22326362]
[1641183785409,0.36309358,46831.0,46830.0,0.41926362]
[1641183785909,0.36309358,46832.0,46830.0,1.61917851]
[1641183786110,0.36309358,46832.0,46831.0,0.18]
[1641183786307,0.36309358,46832.0,46831.0,0.30109971]
[1641183787509,0.36309358,46832.0,46831.0,0.49909971]
[1641183788826,0.36309358,46832.0,46831.0,0.30109971]
[1641183789124,0.09083215,46840.0,46831.0,0.30109971]
[1641183789125,0.36309358,46833.0,46831.0,0.30109971]
[1641183789424,0.36309358,46833.0,46831.0,0.49709971]
[1641183789625,0.36309358,46833.0,46831.0,0.376]
[1641183789825,0.36309358,46833.0,46832.0,0.001]
[1641183790028,1.44821936,46845.0,46832.0,0.03445868]
[1641183790226,1.44821936,46845.0,46833.0,0.30722814]
[1641183790626,1.44821936,46845.0,46844.0,0.18]
[1641183790826,1.44821936,46845.0,46844.0,0.07622]
[1641183791028,1.44821936,46850.0,46844.0,0.25622]
[1641183791226,1.44821936,46850.0,46844.0,0.07622]
[1641183791432,1.44821936,46850.0,46847.0,0.14033567]
[1641183792426,1.44821936,46853.0,46847.0,0.14033567]
[1641183793629,1.42277518,46853.0,46847.0,0.14033567]
[1641183794031,1.42277518,46855.0,46847.0,0.14033567]
[1641183794928,0.14033567,46857.0,46847.0,0.14033567]
[1641183799033,0.84617228,46849.0,46847.0,0.14033567]
[1641183799735,0.84617228,46850.0,46847.0,0.33033567]
[1641183800838,0.84617228,46848.0,46847.0,0.14033567]
[1641183801537,0.84617228,46848.0,46847.0,0.33233567]
[1641183803036,0.84617228,46848.0,46847.0,0.51233567]
[1641183803436,0.84617228,46848.0,46847.0,0.32033567]
[1641183803637,0.84617228,46848.0,46847.0,0.51033567]
[1641183804237,0.84617228,46848.0,46847.0,0.33033567]
[1641183804437,0.84617228,46848.0,46847.0,0.51033567]
[1641183804938,0.84617228,46849.0,46847.0,0.32033567]
[1641183805639,0.84617228,46849.0,46847.0,0.51033567]
[1641183805838,0.84617228,46850.0,46847.0,0.51033567]
[1641183806939,0.84617228,46850.0,46847.0,0.32033567]
[1641183807140,0.84617228,46850.0,46847.0,0.33012967]
[1641183807639,0.84617228,46850.0,46847.0,0.52012967]
[1641183808245,0.84617228,46850.0,46849.0,0.001]
[1641183808640,0.84617228,46852.0,46849.0,0.001]
[1641183808842,0.84617228,46852.0,46851.0,0.001]
[1641183809542,0.84617228,46852.0,46851.0,0.19]
[1641183809744,0.09080425,46857.0,46851.0,0.19]
[1641183809944,0.09080425,46857.0,46851.0,0.189]
[1641183810745,0.84626979,46853.0,46851.0,0.189]
[1641183811046,0.84626979,46853.0,46849.0,0.14033567]
[1641183811446,0.27080425,46857.0,46849.0,0.14033567]
[1641183811645,0.27080425,46857.0,46849.0,0.29733567]
[1641183811849,0.18,46857.0,46849.0,0.29733567]
[1641183812550,0.09080425,46856.0,46849.0,0.29733567]
[1641183812953,0.09080425,46856.0,46849.0,0.14033567]
[1641183814853,2.6573853,46858.0,46849.0,0.14033567]